Cogmind - Beta 11 @@@ ROGUE MODE // 2022.04.02 @ 10:36:49 Player: DrZettl Result: Destroyed self with Mini Grenade Launcher Performance ------------- Evolutions (0) 0 Regions Visited (4) 800 Robots Destroyed (33) 165 Value Destroyed (694) 694 Prototype IDs (0) 0 Alien Tech Used (0) 0 Bonus (360) 360 TOTAL SCORE: 2019 Bonus ------- Follower Combat Kills 60 Aligned with FarCom 300 Cogmind --------- Core Integrity 0/250 Matter 248/300 Energy 250/250 System Corruption 0% Temperature Cool (0) Movement Walking (190) Ox1 Location -9/Mines Parts ------- > --- POWER (1) -------- Ion Engine > --- PROPULSION (2) --- Aluminum Leg Aluminum Leg > --- UTILITY (2) ------ Large Storage Unit Targeting Computer > --- WEAPON (2) ------- Light Cannon Mini Grenade Launcher > --- INVENTORY (15) --- Light Ion Engine Light Nuclear Core Light Nuclear Core Aluminum Leg Wheel Improved Heat Sink Experimental Sensor Array ECM Suite Light Armor Plating Medium Armor Plating Light Assault Rifle Light Assault Rifle AWS/Gauss Light Cannon Peak State ------------ > --- POWER ------------ Ion Engine > --- PROPULSION ------- Aluminum Leg Aluminum Leg > --- UTILITY ---------- Large Storage Unit Targeting Computer > --- WEAPON ----------- Light Cannon Mini Grenade Launcher > --- INVENTORY -------- Light Ion Engine Light Nuclear Core Light Nuclear Core Aluminum Leg Wheel Improved Heat Sink Experimental Sensor Array ECM Suite Light Armor Plating Medium Armor Plating Light Assault Rifle Light Assault Rifle AWS/Gauss Light Cannon [Rating: 12] Favorites ----------- Power Ion Engine Engine Ion Engine Propulsion Aluminum Leg Leg Aluminum Leg Wheel Compact Wheel Utility Large Storage Unit Device Seismic Detector Storage Large Storage Unit Processor Transport Network Coupler Weapon Light Cannon Energy Gun Small Laser Ballistic Gun Light Assault Rifle Ballistic Cannon Light Cannon Launcher Mini Grenade Launcher Build | -11 -10 -10 -10 -9 ------- Run | Scr Mat Min Exi Min Slots Evolved . | . . . . . Power . | . . . . . Propulsion . | . . . . . Utility . | . . . . . Weapon . | . . . . . Parts Attached 32 | 7 21 . . 4 Power 4 | 1 3 . . . Engine 4 | 1 3 . . . Core . | . . . . . Reactor . | . . . . . Propulsion 9 | 2 5 . . 2 Treads . | . . . . . Leg 6 | . 4 . . 2 Wheel 3 | 2 1 . . . Hover . | . . . . . Flight . | . . . . . Utility 10 | 2 7 . . 1 Device 3 | 1 2 . . . Storage 5 | 1 4 . . . Processor 2 | . 1 . . 1 Hackware . | . . . . . Protection . | . . . . . Artifact . | . . . . . Weapon 9 | 2 6 . . 1 Energy Gun 4 | 1 3 . . . Energy Cannon . | . . . . . Ballistic Gun 2 | 1 1 . . . Ballistic Cannon 2 | . 2 . . . Launcher 1 | . . . . 1 Special Weapon . | . . . . . Impact Weapon . | . . . . . Slashing Weapon . | . . . . . Piercing Weapon . | . . . . . Special Melee Weapon . | . . . . . Unidentified Prototypes . | . . . . . Parts Lost 4 | . 4 . . . Power . | . . . . . Propulsion 1 | . 1 . . . Utility 1 | . 1 . . . Weapon 2 | . 2 . . . Highest Loss Streak 2 | . 2 . . . To Critical Strikes . | . . . . . Average Slot Usage (%) 99 | . 98 100 100 100 Engine 14 | . 14 14 14 14 Leg 23 | . 18 28 28 28 Wheel 4 | . 9 . . . Device 3 | . 6 . . . Storage 14 | . 14 14 14 14 Processor 10 | . 6 14 14 14 Energy Gun 3 | . 6 . . . Ballistic Gun 3 | . 7 . . . Ballistic Cannon 21 | . 13 28 28 28 Naked Turns . | . . . . . Heaviest Build 31 | 13 31 31 31 31 Greatest Support 32 | 32 32 20 20 20 Greatest Overweight (x) 1 | . 1 1 1 1 Average Overweight (x) . | . . 1 1 1 Largest Inventory Capacity 20 | 8 20 15 15 15 Average Capacity 13 | 6 11 15 15 15 Most Carried 15 | 4 10 15 15 15 Average Carried 11 | 2 7 13 14 14 Final Capacity 15 | 8 15 15 15 15 Final Carried 15 | 4 10 15 15 15 Class Distribution -------------------- 70% | Scavenger-Mutant 29% | Mutant Dominant Class ---------------- Scavenger-Mutant | -10/Materials Scavenger-Mutant | -10/Mines Scavenger-Mutant | -10/Exiles Mutant | -9/Mines Resources | -11 -10 -10 -10 -9 ----------- Run | Scr Mat Min Exi Min Matter Collected 767 | 219 500 23 . 25 Remotely 10 | . 10 . . . Salvage Created 978 | 41 895 30 . 12 Parts 58 | 4 44 7 . 3 Haulers Intercepted 2 | . 2 . . . Recyclers Shooed 3 | . 3 . . . Parts Field Recycled . | . . . . . Retrieved Matter . | . . . . . Parts Self-Destructed . | . . . . . Prevented . | . . . . . Kills | -11 -10 -10 -10 -9 ------- Run | Scr Mat Min Exi Min Combat Hostiles Destroyed 23 | . 18 2 . 3 Guns 13 | . 13 . . . Cannons 7 | . 5 2 . . AOE 3 | . . . . 3 Classes Destroyed 9 | 1 7 1 . . Worker 1 | . 1 . . . Builder 1 | . . 1 . . Tunneler 2 | 2 . . . . Hauler 2 | . 2 . . . Recycler 1 | . 1 . . . Operator 1 | . 1 . . . Watcher 2 | . 2 . . . Swarmer 8 | . 3 2 . 3 Grunt 15 | . 15 . . . Best Kill Streak 4 | 2 4 2 . 3 Combat Bots Only 4 | . 4 2 . 3 Max Kills in Single Turn 2 | 1 2 2 . 2 Gunslinging . | . . . . . Exploded 2 | . . . . 2 Melee . | . . . . . Uniques/NPCs Destroyed . | . . . . . Combat | -11 -10 -10 -10 -9 -------- Run | Scr Mat Min Exi Min Damage Taken 1024 | . 924 16 . 84 Core 250 | . 225 8 . 17 Absorbed by Shields . | . . . . . Core Remaining (%) 100 | 100 . . . . Volleys Fired 109 | 5 97 3 . 4 Largest 2 | 2 2 2 . 2 Hottest 85 | 60 85 70 . 70 Shots Fired 207 | 10 185 6 . 6 Gun 151 | 10 141 . . . Cannon 54 | . 44 6 . 4 Launcher 2 | . . . . 2 Special . | . . . . . Kinetic 133 | 5 118 6 . 4 Thermal 72 | 5 67 . . . Explosive 2 | . . . . 2 Electromagnetic . | . . . . . Robot Hit Streak 9 | 2 9 7 . 3 Robot Miss Streak 4 | 2 4 3 . 3 Penetration Max . | . . . . . Secondary Targets 2 | . 2 . . . Max Gunslinging Chain 1 | . 1 . . . Shots Hit Robots 108 | 5 98 2 . 3 Core Hits 50 | 2 42 3 . 3 Critical Kills . | . . . . . Critical Parts Destroyed . | . . . . . Critical Strikes 3 | . 3 . . . Burn 2 | . 2 . . . Blast 1 | . 1 . . . Melee Attacks . | . . . . . Impact . | . . . . . Slashing . | . . . . . Piercing . | . . . . . Sneak Attacks . | . . . . . Combat Hostiles . | . . . . . Follow-up Attacks . | . . . . . Damage Inflicted 1600 | 56 1242 52 . 250 Guns 949 | 56 893 . . . Cannons 394 | . 324 52 . 18 Explosions 232 | . . . . 232 Melee . | . . . . . Ramming 25 | . 25 . . . Kinetic 703 | 10 623 52 . 18 Thermal 640 | 46 594 . . . Explosive 232 | . . . . 232 Electromagnetic . | . . . . . Impact . | . . . . . Slashing . | . . . . . Piercing . | . . . . . Highest Corruption . | . . . . . Average Corruption . | . . . . . Corruption Purged . | . . . . . Corruption Blocked . | . . . . . Overload Shots . | . . . . . Overflow Damage 16 | . . . . 16 Projectiles . | . . . . . Explosions 16 | . . . . 16 Melee . | . . . . . Knockbacks 3 | . 3 . . . Impact . | . . . . . Kinetic 2 | . 2 . . . Secondary 1 | . 1 . . . Self-Inflicted Damage 22 | . 2 . . 20 Shots 2 | . . . . 2 Rammed 1 | . 1 . . . Targets Rammed 3 | . 3 . . . Kicked 2 | . 2 . . . Crushed . | . . . . . Highest Temperature 430 | 40 430 18 . 18 Average Temperature 101 | 22 108 9 . 10 Received Heat Transfer 480 | . 480 . . . Effects 5 | . 5 . . . Shutdowns 1 | . 1 . . . Energy Bleed 1 | . 1 . . . Damage (major) 3 | . 3 . . . Siege Activations . | . . . . . Robots Corrupted . | . . . . . Combat Hostiles . | . . . . . Parts Fried . | . . . . . Impact Corruptions . | . . . . . Robots Melted . | . . . . . Combat Hostiles . | . . . . . Parts Melted 3 | . 3 . . . Heat Transferred 1767 | 100 1667 . . . Parts Sabotaged . | . . . . . Parts Stolen . | . . . . . Parts Stripped . | . . . . . Power Chain Reactions . | . . . . . Missiles Intercepted . | . . . . . Alert | -11 -10 -10 -10 -9 ------- Run | Scr Mat Min Exi Min Peak Influence 369 | 10 369 177 . 80 Initial 79 | . 6 79 . . Average 139 | 2 192 139 . . Maximum Alert Level 1 | . 1 . . . Low Security (%) 61 | 100 37 100 . 100 Level 1 38 | . 62 . . . Level 2 . | . . . . . Level 3 . | . . . . . Level 4 . | . . . . . Level 5 . | . . . . . High Security . | . . . . . Max Security . | . . . . . Squads Dispatched 6 | . 6 . . . Investigation 1 | . 1 . . . Extermination . | . . . . . Reinforcement 5 | . 5 . . . Assault . | . . . . . Garrison . | . . . . . Intercept . | . . . . . Searches Triggered . | . . . . . Construction Impeded . | . . . . . Haulers Reinforced . | . . . . . Active Scanning Responses . | . . . . . Cargo Convoy Interrupts . | . . . . . Stealth | -11 -10 -10 -10 -9 --------- Run | Scr Mat Min Exi Min Distress Signals 6 | . 6 . . . Communications Jammed . | . . . . . Distress Signals . | . . . . . Times Spotted 53 | . 47 3 . 3 Peak Tracking Total 6 | . 6 3 . 3 Tactical Retreats 6 | . 5 1 . . Traps | -11 -10 -10 -10 -9 ------- Run | Scr Mat Min Exi Min Traps Triggered . | . . . . . Indirectly . | . . . . . Trap Hack Attempts . | . . . . . Triggered . | . . . . . Disarmed . | . . . . . Reprogrammed . | . . . . . Reused . | . . . . . Traps Extracted . | . . . . . Installed . | . . . . . Triggered . | . . . . . Machines | -11 -10 -10 -10 -9 ---------- Run | Scr Mat Min Exi Min Machines Disabled . | . . . . . Max in Single Turn . | . . . . . Machines Sabotaged . | . . . . . Garrisons Compromised . | . . . . . Overloaded Fab Kills . | . . . . . Hacking | -11 -10 -10 -10 -9 --------- Run | Scr Mat Min Exi Min Machines Accessed 8 | . 4 . 4 . Terminals 2 | . 2 . . . Fabricators . | . . . . . Repair Stations . | . . . . . Recycling Units 2 | . 2 . . . Scanalyzers . | . . . . . Garrison Access . | . . . . . Total Hacks 56 | . 13 . 43 . Successful 47 | . 4 . 43 . Failed 9 | . 9 . . . Catastrophic 1 | . 1 . . . Database Lockouts . | . . . . . Manual 11 | . 9 . 2 . Terminals 9 | . 9 . . . Fabricators . | . . . . . Repair Stations . | . . . . . Recycling Units 4 | . 4 . . . Scanalyzers . | . . . . . Garrison Access . | . . . . . Terminal Hacks 44 | . 1 . 43 . Record 43 | . . . 43 . Branch Access Points 1 | . 1 . . . Fabricator Hacks . | . . . . . Repair Station Hacks . | . . . . . Recycling Unit Hacks 3 | . 3 . . . Report Inventory 2 | . 2 . . . Retrieve Components 1 | . 1 . . . Scanalyzer . | . . . . . Garrison Access Hacks . | . . . . . Unauthorized Hacks . | . . . . . Terminals . | . . . . . Fabricators . | . . . . . Repair Stations . | . . . . . Recycling Units . | . . . . . Scanalyzers . | . . . . . Garrison Access . | . . . . . Data Cores Recovered . | . . . . . Used . | . . . . . Hacking Detections 2 | . 2 . . . Full Trace Events 2 | . 2 . . . Feedback Events . | . . . . . Feedback Blocked . | . . . . . Robot Schematics Acquired . | . . . . . Robots Built . | . . . . . Authchips . | . . . . . Time . | . . . . . Total Robot Build Rating . | . . . . . Part Schematics Acquired . | . . . . . Parts Built . | . . . . . Authchips . | . . . . . Time . | . . . . . Total Part Build Rating . | . . . . . Parts Repaired . | . . . . . Time . | . . . . . Parts Recycled . | . . . . . Recycled Matter . | . . . . . Retrieved Matter . | . . . . . Retrieved Components 10 | . 10 . . . Parts Scanalyzed . | . . . . . Part Schematics Acquired . | . . . . . Parts Damaged . | . . . . . Bothacking | -11 -10 -10 -10 -9 ------------ Run | Scr Mat Min Exi Min Used RIF Installer . | . . . . . Robots Hacked . | . . . . . Non-combat . | . . . . . Combat . | . . . . . Robot Hacks Applied . | . . . . . Relay Couplers Released . | . . . . . Fabnet Peak Effective % . | . . . . . Robots Rewired . | . . . . . Allies Hacked . | . . . . . Hacks Repelled . | . . . . . Allies | -11 -10 -10 -10 -9 -------- Run | Scr Mat Min Exi Min Total Allies 2 | . . 2 . . Largest Group 2 | . . 2 1 . Highest-Rated Group 43 | . . 43 31 . Highest-Rated Ally 31 | . . 31 31 . Total Orders . | . . . . . Ally Attacks 5 | . . 5 . . Total Damage 83 | . . 83 . . Kills 2 | . . 2 . . Allies Corrupted . | . . . . . Allies Melted . | . . . . . Intel | -11 -10 -10 -10 -9 ------- Run | Scr Mat Min Exi Min Robot Analysis Total . | . . . . . Derelict Logs Recovered 1 | . . . . 1 Drone Launches . | . . . . . Drone Recoveries . | . . . . . Exploration | -11 -10 -10 -10 -9 ------------- Run | Scr Mat Min Exi Min Turns Passed 3687 | 83 1661 405 989 549 Spaces Moved 1893 | 56 916 200 520 201 Core 1 | 1 . . . . Treads . | . . . . . Legs 1417 | . 496 200 520 201 Wheels 475 | 55 420 . . . Hover . | . . . . . Flight . | . . . . . Fastest Speed 50 | 50 100 190 190 190 Average Speed 163 | 99 140 190 190 190 Slowest Speed 190 | 100 190 190 190 190 Overloaded Moves . | . . . . . Propulsion Burnouts . | . . . . . Robots Hopped . | . . . . . Cave-ins Triggered . | . . . . . Exploration Rate (%) 50 | 3 91 37 93 29 Regions Visited 4 Branch Regions 3 Pre-discovered Areas 2 | . . . 1 1 Known Exits Taken 1 | . 1 . . . Unknown Exits Taken 3 | 1 . 1 1 . Scrap Searched 2 | . . 1 . 1 Spaces Dug . | . . . . . Terrain Destroyed 14 | . . . . 14 Melee . | . . . . . Projectile . | . . . . . AOE 14 | . . . . 14 Terrain Rammed . | . . . . . Walls Destroyed . | . . . . . Machines Disabled . | . . . . . Actions | -11 -10 -10 -10 -9 --------- Run | Scr Mat Min Exi Min Total 2297 | 71 1120 221 522 363 Wait 215 | . 56 10 . 149 Move 1889 | 55 915 199 519 201 Hop . | . . . . . Pick Up 26 | 4 11 7 1 3 Fast Attach 12 | 7 5 . . . Attach 3 | . 3 . . . Detach 2 | . 2 . . . Swap 17 | . 13 . . 4 Drop 21 | . 15 2 2 2 Fire 109 | 5 97 3 . 4 Melee . | . . . . . Ram 1 | . 1 . . . Kick 2 | . 2 . . . Crush . | . . . . . Escape Stasis . | . . . . . Rewire . | . . . . . Trap . | . . . . . Miscellaneous . | . . . . . Route ------- -11/Scrapyard -10/Materials (discovered 5 exits: [*Mat x3] / *Min x2) -10/Mines -10/Exiles (discovered 2 exits: [*Min x2]) -9/Mines (discovered 1 exit: [*Mat]) History --------- Turn | Location | Event 12 | -11/Scrapyard | Discovered new exit (range 15) 84 | -11/Scrapyard | Entered Materials 253 | -10/Materials | Discovered new exit (range 10) 303 | -10/Materials | Discovered new exit (range 10) 308 | -10/Materials | Build established: Mutant 398 | -10/Materials | Discovered new exit (range 16) 469 | -10/Materials | Core integrity fell below 50% 768 | -10/Materials | Core integrity fell below 20% 904 | -10/Materials | Discovered new exit (range 16) 1078 | -10/Materials | Discovered new exit (range 5) 1118 | -10/Materials | Build established: Scavenger-Mutant 1449 | -10/Materials | Identified exit to Mines 1745 | -10/Materials | Entered Mines 2000 | -10/Mines | Found a hidden stash of uninstalled traps 2137 | -10/Mines | Deemed a non-threat by the Exiles lab entrance 2139 | -10/Mines | Discovered new exit (range 5) 2150 | -10/Mines | Entered Exiles 2150 | -10/Exiles | Accompanied by 1 ally 2180 | -10/Exiles | Led the pair of lost Derelicts to a safe place 2196 | -10/Exiles | Met 8R-AWN 2228 | -10/Exiles | Met EX-HEX 2339 | -10/Exiles | Met EX-DEC 2366 | -10/Exiles | Visited The Gauntlet 2671 | -10/Exiles | Discovered new exit (range 12) 2753 | -10/Exiles | Learned location of Zion (-6) 2806 | -10/Exiles | Met EX-BIN 2838 | -10/Exiles | Aligned with FarCom system 2840 | -10/Exiles | Given EX-Vault access code 2920 | -10/Exiles | Opened EX-Vault 2944 | -10/Exiles | Found Prototype Ballistic Gun 2987 | -10/Exiles | Warned to stay clear of 0b10 Research branches 3114 | -10/Exiles | Discovered new exit (range 15) 3139 | -10/Exiles | Left Exiles lab with AWS/Gauss 3139 | -10/Exiles | Entered Mines 3145 | -9/Mines | Learned location of 1 exit from Proximity Caves 3164 | -9/Mines | Found a damaged Exp. Sensor Array with a note attached 3170 | -9/Mines | Found Prototype Device 3483 | -9/Mines | Learned location of Storage (-7) 3534 | -9/Mines | Build established: Mutant 3686 | -9/Mines | Discovered new exit (range 8) 3688 | -9/Mines | Destroyed self with Mini Grenade Launcher Last Messages --------------- 03456_ Dropped Aluminum Leg. 03457_ Acquired Med. Armor Plating. 03472_ R-06 Scavenger collects Aluminum Leg. 03483_ A derelict emerges from the shadows: "Are any of them following you? I'm here trying to lose some heat after our second raid on Storage failed. Whatever you do stay away from that place, they've tightened security following our previous successful raids." World map updated: -7/Storage. 03485_ N2-E99(g): "We scattered so the Unaware couldn't effectively use their advantage in numbers, and I suggest you do the same." 03485_ N2-E99(g) slips back into the shadows. 03499_ K-01 Serf collects debris. 03583_ Acquired 4 matter. 03678_ C-30 ARC bursts open, deploying its payload. 03678_ S-10 Pest unfolds itself. 03686_ S-10 Pest destroyed. 03686_ Destroyed Lgt. Ion Engine. 03686_ S-10 Pest destroyed. 03686_ EXIT=FOUND 03688_ S-10 Pest destroyed. Map ----- +----------------------------------------------------+ | | | | | | | | | | | ?????????????????????????????????????????????????? | | ?????????????????????????????????????????????????? | | ?????????????????????????????????????????????????? | | ?????????????????????????????????????????????????? | | ???????????????????????????????? ????????????????? | | ????????????????????????????????""??????????????## | | ??????????????????????????????? """???########### | | ??????????????????????????? """g""" ??# | | ???????????????????????????g g ## | | ??????????????????????????????? """ ####### | | ??????????????????????????????? """ ## #?????## | | ??????????????????????????????? """ ??# #??????# | | ??????????????????????????????? ???# #??????## | | ??????????????????????????????? ""????# ###?????# | | ??????????????????????????????? "?????# ##????? | | ??????????????????????????????"???????# #????? | | ???????????????????##???????sss???????# #????? | | ???????????????????# ###?????????????## ##????? | | ?????????????????### ####?????????## ##????## | | ????????????????## #?????????# = #????## | | ????????????????# [= @ ########### ###### | | ????????????????#% ku | | ????????????????# # # # | | ?????????????